bitfinex-derivatives/quotes_SOLF0:USTF0_20241008
["timestamp","ask_amount","ask_price","bid_price","bid_amount"]
[1728376183518,3.4876,143.4,143.39,0.12502]
[1728376183704,10.7,143.42,143.39,0.12502]
[1728376183705,5.18,143.41,143.39,0.12502]
[1728376184018,5.18,143.41,143.4,5.36520691]
[1728376184413,5.18,143.41,143.39,0.12502]
[1728376184610,5.18,143.41,143.4,5.36355073]
[1728376186707,4.82497783,143.47,143.4,5.36355073]
[1728376186908,4.82497783,143.47,143.41,10.7]
[1728376186909,10.7,143.44,143.41,10.7]
[1728376187108,15.88,143.45,143.42,5.3627845]
[1728376187316,14.1867,143.44,143.43,5.3627845]
[1728376190219,10.7,143.44,143.4,10.7]
[1728376190413,14.1866,143.44,143.43,5.36320997]
[1728376190617,10.7,143.44,143.43,5.36320997]
[1728376191019,14.1866,143.44,143.43,5.36320997]
[1728376192223,10.7,143.44,143.39,0.12502]
[1728376192523,10.7,143.42,143.4,5.3652098]
[1728376192820,10.7,143.42,143.41,5.3652098]
[1728376194433,14.1871,143.42,143.39,0.12502]
[1728376194615,14.1871,143.42,143.4,5.36544986]
[1728376194815,14.1871,143.42,143.41,5.36544986]
[1728376197325,10.7,143.42,143.39,0.12502]
[1728376197627,3.4874,143.41,143.4,5.36432772]
[1728376200322,3.4874,143.41,143.4,5.36525162]
[1728376200818,3.4874,143.41,143.39,0.12502]
[1728376201026,3.4874,143.41,143.4,5.36483804]
[1728376201611,14.1874,143.41,143.4,5.36483804]
[1728376202429,10.7,143.41,143.39,0.12502]
[1728376202722,14.1876,143.4,143.39,0.12502]
[1728376202929,14.1876,143.4,143.39,5.49196609]
[1728376204929,3.4876,143.4,143.39,5.49196609]
[1728376205124,14.1876,143.4,143.39,5.49196609]
[1728376205734,14.1876,143.4,143.39,0.12502]
[1728376205931,14.1876,143.4,143.39,5.49448374]
[1728376206227,14.1876,143.4,143.39,0.12502]
[1728376206419,14.1876,143.4,143.39,5.4953616]
[1728376208634,14.1874,143.41,143.39,5.4953616]
[1728376208829,19.3674,143.41,143.4,5.3703416]
[1728376209021,15.88,143.41,143.4,5.36728475]
[1728376210124,19.3673,143.41,143.4,5.36728475]
[1728376210936,5.18,143.41,143.4,5.36728475]
[1728376211234,10.7,143.42,143.4,5.36728475]
[1728376211449,10.7,143.42,143.39,0.12502]
[1728376211647,10.7,143.42,143.4,5.36616118]
[1728376211845,10.7,143.42,143.41,5.36616118]
[1728376212052,3.4874,143.41,143.39,0.12502]
[1728376212241,10.7,143.42,143.41,5.36468693]
[1728376212446,10.7,143.43,143.41,5.36468693]
[1728376212754,14.1868,143.43,143.42,5.36468693]
[1728376215753,10.7,143.43,143.39,0.12502]
[1728376215949,3.4871,143.42,143.39,0.12502]
[1728376216146,3.4871,143.42,143.4,5.3677565]
[1728376216458,3.4871,143.42,143.39,0.12502]
[1728376216758,3.4871,143.42,143.4,5.36860598]
[1728376216951,10.7,143.43,143.41,5.36860598]
[1728376217157,14.187,143.43,143.42,5.36860598]
[1728376218960,10.7,143.43,143.39,0.12502]
[1728376219256,10.7,143.41,143.4,5.36741964]
[1728376220459,14.1873,143.41,143.4,5.36741964]
[1728376220859,19.3673,143.41,143.4,5.36741964]
[1728376224057,8.6673,143.41,143.4,5.36741964]
[1728376224356,19.3673,143.41,143.4,5.36741964]
[1728376224863,15.88,143.41,143.39,0.12502]
[1728376225164,14.1876,143.4,143.39,0.12502]
[1728376225665,3.4886,143.36,143.33,92.5209385]
[1728376225855,10.7,143.35,143.33,0.12502]
[1728376226050,10.7,143.36,143.33,0.12502]
[1728376226961,14.1887,143.36,143.33,0.12502]
[1728376227162,10.7,143.34,143.33,0.12502]
[1728376229462,14.189,143.34,143.33,0.12502]
[1728376229954,3.489,143.34,143.33,0.12502]
[1728376230156,10.7,143.35,143.33,0.12502]
[1728376230355,14.1889,143.35,143.33,0.12502]
[1728376231256,10.7,143.34,143.33,0.12502]
[1728376231458,14.189,143.34,143.33,0.12502]
[1728376244375,14.189,143.34,143.27,0.12502]
[1728376244376,3.4901,143.3,143.27,0.12502]
[1728376244671,10.7,143.29,143.27,0.12502]
[1728376244879,14.1903,143.29,143.27,0.12502]
[1728376245374,3.4903,143.29,143.27,0.12502]
[1728376247376,3.49,143.3,143.27,10.82502]
[1728376248082,1.416,143.36,143.29,10.7]
[1728376248375,5.18,143.35,143.3,10.7]
[1728376248576,3.489,143.35,143.31,3.4896]
[1728376248777,15.88,143.36,143.3,10.7]
[1728376249279,15.88,143.36,143.28,2.7406]
[1728376249482,15.88,143.36,143.3,10.7]
[1728376250075,3.4892,143.34,143.3,14.1898]
[1728376250281,15.88,143.36,143.32,10.7]
[1728376250484,10.7,143.34,143.31,10.7]
[1728376250679,14.1892,143.34,143.31,10.7]
[1728376253481,0.12502,143.39,143.32,10.7]
[1728376253684,15.88,143.36,143.32,10.7]
[1728376253885,19.4062826,143.36,143.32,10.7]
[1728376254386,22.8948826,143.36,143.32,14.1894]
[1728376254892,8.6686,143.36,143.32,14.1894]
[1728376256181,3.4888,143.35,143.32,14.1894]
[1728376260689,3.4894,143.33,143.3,10.7]
[1728376261094,10.7,143.34,143.3,10.7]
[1728376261288,3.4893,143.33,143.3,10.7]
[1728376261785,10.7,143.33,143.29,15.5246]
[1728376261993,3.4897,143.32,143.29,15.5246]
[1728376262188,3.4897,143.32,143.3,10.7]
[1728376262487,3.4893,143.33,143.31,10.7]
[1728376262788,10.7,143.35,143.31,10.7]
[1728376263191,3.4892,143.34,143.31,14.1897]
[1728376263584,3.4892,143.34,143.31,10.7]
[1728376265485,412.34,143.44,143.33,10.7]
[1728376265685,3.58939793,143.39,143.36,10.7]
[1728376265889,0.12502,143.39,143.36,10.7]
[1728376266189,3.61302,143.39,143.36,10.7]
[1728376266692,7.0257585,143.39,143.36,10.7]
[1728376266890,3.4881,143.38,143.36,10.7]
[1728376267093,10.7,143.38,143.33,14.1891]
[1728376267595,10.7,143.38,143.33,10.7]
[1728376267784,10.7,143.36,143.32,10.7]
[1728376268287,3.4891,143.34,143.32,10.7]
[1728376269192,3.4887,143.36,143.33,10.7]
[1728376270198,3.5377585,143.39,143.34,10.7]
[1728376270498,19.3977585,143.39,143.34,10.7]
[1728376270794,3.4884,143.37,143.34,10.7]
[1728376272186,19.3977585,143.39,143.35,10.7]
[1728376272392,3.4881,143.38,143.35,10.7]
[1728376272597,19.3977585,143.39,143.35,10.7]
[1728376273191,3.4882,143.38,143.34,14.189]
[1728376274782,3.4883,143.37,143.34,14.189]
[1728376275203,19.3977585,143.39,143.34,14.189]
[1728376275396,3.4882,143.38,143.34,14.189]
[1728376275591,3.5377585,143.39,143.36,14.1885]
[1728376276495,7.0256585,143.39,143.36,14.1885]
[1728376276689,7.0256585,143.39,143.36,10.7]
[1728376278290,3.61292,143.39,143.36,10.7]
[1728376278802,7.14250412,143.39,143.36,10.7]
[1728376279292,0.12502,143.39,143.36,10.7]
[1728376279486,0.12502,143.39,143.38,10.7]
[1728376279685,5.16,143.44,143.38,10.7]
[1728376279888,5.16,143.44,143.41,10.7]
[1728376280089,8.6467,143.44,143.41,10.7]
[1728376280286,3.4867,143.44,143.41,10.7]
[1728376280689,3.4867,143.44,143.42,10.7]
[1728376285394,0.12502,143.45,143.43,10.7]
[1728376286488,0.12502,143.45,143.44,14.1866]
[1728376286690,0.12502,143.51,143.44,10.7]
[1728376286995,3.61002,143.51,143.48,10.7]
[1728376287187,0.12502,143.51,143.48,10.7]
[1728376287894,0.12502,143.51,143.5,10.7]
[1728376293505,3.4837,143.56,143.51,3.4847]
[1728376293699,3.4837,143.56,143.53,10.7]
[1728376293900,10.7,143.55,143.47,1.3763]
[1728376294098,3.4846,143.53,143.5,10.7]
[1728376294300,10.7,143.55,143.48,5.16]
[1728376294504,15.86,143.55,143.49,10.7]
[1728376294703,15.86,143.55,143.51,10.7]
[1728376295100,3.4847,143.52,143.51,10.7]
[1728376295405,3.4847,143.52,143.49,10.7]
[1728376296003,10.7,143.54,143.49,10.7]
[1728376296205,3.4849,143.51,143.49,10.7]
[1728376296999,10.7,143.5,143.45,0.12502]
[1728376297202,5.16,143.52,143.47,10.7]
[1728376297403,15.86,143.52,143.47,10.7]
[1728376297802,3.4854,143.49,143.47,10.7]
[1728376298409,3.4854,143.49,143.48,10.7]
[1728376298595,5.16,143.52,143.48,10.7]
[1728376298799,5.16,143.52,143.49,10.7]
[1728376298996,1.4426,143.54,143.49,10.7]
[1728376299202,3.485,143.51,143.49,10.7]
[1728376299400,10.7,143.53,143.49,10.7]
[1728376299600,3.4847,143.52,143.49,10.7]
[1728376300214,10.7,143.53,143.49,10.7]
[1728376300413,3.485,143.51,143.49,10.7]
[1728376302214,10.7,143.53,143.49,10.7]
[1728376302413,17.3026,143.54,143.49,10.7]
[1728376302920,3.4849,143.51,143.49,10.7]
[1728376304306,3.4847,143.52,143.49,10.7]
[1728376304511,10.7,143.53,143.49,10.7]
[1728376305010,3.4848,143.52,143.49,10.7]
[1728376306509,10.7,143.53,143.49,10.7]
[1728376306712,3.485,143.51,143.49,10.7]
[1728376308318,10.7,143.53,143.49,10.7]
[1728376309014,10.7,143.53,143.49,14.1852]
[1728376309317,10.7,143.53,143.49,10.7]
[1728376310322,3.4847,143.52,143.5,10.7]
[1728376312612,5.16,143.55,143.51,10.7]
[1728376312920,3.4843,143.54,143.52,10.7]
[1728376313423,3.4841,143.55,143.52,10.7]
[1728376314628,1.3384,143.56,143.52,10.7]
[1728376314827,4.8222,143.56,143.54,10.7]
[1728376316016,1.3384,143.56,143.48,1.4112]
[1728376316217,1.3384,143.56,143.52,10.7]
[1728376316522,1.3384,143.56,143.53,10.7]
[1728376316727,3.52693997,143.57,143.54,10.7]
[1728376317426,7.01053997,143.57,143.54,10.7]
[1728376318530,3.52693997,143.57,143.54,10.7]
[1728376318720,3.52693997,143.57,143.55,10.7]
[1728376319929,0.12502,143.57,143.55,10.7]
[1728376320841,0.12502,143.57,143.52,5.16]
[1728376321032,3.4841,143.55,143.53,10.7]
[1728376321739,10.82502,143.57,143.53,10.7]
[1728376321941,3.4842,143.54,143.53,10.7]
[1728376322845,3.4847,143.52,143.49,10.7]
[1728376324129,10.7,143.53,143.45,2.89902]
[1728376324433,10.7,143.51,143.47,10.7]
[1728376324630,3.4231792,143.5,143.46,10.7]
[1728376324834,3.4857,143.48,143.46,10.7]
[1728376325043,3.4857,143.48,143.45,12.27122]
[1728376325235,3.53920146,143.49,143.45,10.82502]
[1728376325434,3.4855,143.49,143.46,3.4861]
[1728376325635,3.4855,143.49,143.45,10.82502]
[1728376325948,3.4856,143.48,143.45,14.31122]
[1728376326146,3.4856,143.48,143.45,10.82502]
[1728376326646,3.4857,143.48,143.45,0.12502]
[1728376326944,10.7,143.47,143.45,0.12502]
[1728376328542,3.4861,143.46,143.45,0.12502]
[1728376328737,14.1861,143.46,143.45,0.12502]
[1728376329139,3.4861,143.46,143.45,0.12502]
[1728376330048,10.7,143.48,143.45,0.12502]
[1728376330251,3.486,143.47,143.45,0.12502]
[1728376330545,10.7,143.47,143.45,0.12502]
[1728376330744,3.4861,143.46,143.45,0.12502]
[1728376331644,14.1861,143.46,143.45,0.12502]
[1728376331847,19.3461,143.46,143.45,0.12502]
[1728376336344,3.4873,143.42,143.39,0.12502]
[1728376336547,15.86,143.43,143.39,0.12502]
[1728376337459,3.4875,143.41,143.39,0.12502]
[1728376337644,7.01944317,143.41,143.39,0.12502]
[1728376338046,3.4876,143.4,143.39,0.12502]
[1728376343553,3.53194317,143.41,143.39,0.12502]
[1728376345652,7.01924317,143.41,143.39,0.12502]
[1728376345855,3.4873,143.41,143.39,0.12502]
[1728376346560,7.03882193,143.41,143.39,0.12502]
[1728376346751,3.4873,143.41,143.39,0.12502]
[1728376347258,6.95092333,143.41,143.39,0.12502]
[1728376349060,2.6305,143.45,143.39,0.12502]
[1728376349356,19.3805,143.45,143.39,0.12502]
[1728376349561,5.16,143.44,143.39,0.12502]
[1728376349749,3.4872,143.42,143.39,0.12502]
[1728376350059,5.16,143.44,143.39,0.12502]
[1728376350259,3.487,143.43,143.39,3.61272]
[1728376351158,5.16,143.44,143.39,3.61272]
[1728376351159,8.6467,143.44,143.4,3.4874]
[1728376351858,8.6467,143.44,143.39,0.12502]
[1728376351859,3.4869,143.43,143.39,0.12502]
[1728376352061,3.4869,143.43,143.39,3.61272]
[1728376353869,3.4869,143.43,143.4,3.4876]
[1728376356374,3.4871,143.42,143.39,3.61272]
[1728376358473,3.4871,143.42,143.4,10.71]
[1728376358661,3.4868,143.44,143.41,14.1972]
[1728376358866,5.16,143.46,143.41,10.71]
[1728376359574,5.16,143.46,143.43,10.71]
[1728376360370,3.4862,143.46,143.43,10.71]
[1728376362465,3.4862,143.46,143.42,14.1971]
[1728376362661,10.71,143.47,143.42,14.1971]
[1728376362662,10.71,143.47,143.42,10.71]
[1728376362862,19.3557,143.48,143.44,14.1966]
[1728376363068,77.68465064,143.5,143.45,10.71]
[1728376363263,8.72671543,143.5,143.47,10.71]
[1728376363567,3.61012,143.51,143.47,10.71]
[1728376364067,3.49446128,143.5,143.47,14.1958]
[1728376364370,3.49446128,143.5,143.47,10.71]
[1728376365371,3.61012,143.51,143.47,10.71]
[1728376365976,3.41044639,143.5,143.47,10.71]
[1728376368577,17.60564639,143.5,143.47,10.71]
[1728376371070,3.41044639,143.5,143.47,14.1959]
[1728376371972,10.83502,143.51,143.47,10.71]
[1728376372173,3.4854,143.49,143.45,10.71]
[1728376372376,6.98658943,143.49,143.45,10.71]
[1728376372584,3.4854,143.49,143.47,10.71]
[1728376373179,6.96079413,143.49,143.47,10.71]
[1728376374381,3.4853,143.5,143.47,10.71]
[1728376374884,6.97104604,143.5,143.47,10.71]
[1728376376087,3.4855,143.49,143.47,10.71]
[1728376376389,3.48574604,143.5,143.45,10.71]
[1728376376595,3.4855,143.49,143.45,10.71]
[1728376376892,6.96845716,143.49,143.45,10.71]
[1728376377288,6.96845716,143.49,143.46,10.71]
[1728376379497,3.4857,143.48,143.46,10.71]
[1728376380198,10.83502,143.51,143.46,10.71]
[1728376380492,3.4853,143.5,143.46,14.196]
[1728376380693,3.45064817,143.49,143.46,14.196]
[1728376380896,10.83502,143.51,143.46,14.196]
[1728376381084,3.4854,143.49,143.46,10.71]
[1728376381287,7.00924374,143.49,143.46,10.71]
[1728376381592,3.4854,143.49,143.46,10.71]
[1728376381989,0.12502,143.51,143.47,10.71]
[1728376382196,0.12502,143.51,143.5,10.71]
[1728376382696,0.12502,143.51,143.5,14.1951]
[1728376385103,69.04574109,143.57,143.5,10.71]
[1728376385390,74.18574109,143.57,143.55,10.71]
[1728376385590,77.66924109,143.57,143.55,10.71]
[1728376386100,74.18574109,143.57,143.55,10.71]
[1728376386305,3.4837,143.56,143.55,10.71]
[1728376387197,74.18574109,143.57,143.55,10.71]
[1728376387390,72.52924109,143.57,143.55,10.71]
[1728376389199,69.04574109,143.57,143.56,10.71]
[1728376389597,0.12502,143.57,143.56,10.71]
[1728376389797,0.12502,143.57,143.56,14.1937]
[1728376390890,0.12502,143.57,143.56,10.71]
[1728376393399,0.12502,143.57,143.56,14.1937]
[1728376394098,5.26502,143.63,143.56,10.71]
[1728376394307,5.26502,143.63,143.6,10.71]
[1728376394495,6.99473629,143.62,143.6,10.71]
[1728376397094,6.99473629,143.62,143.59,10.71]
[1728376398311,6.99473629,143.62,143.58,3.483]
[1728376398502,6.99473629,143.62,143.6,10.71]
[1728376399607,3.51233629,143.62,143.6,10.71]
[1728376399902,10.83502,143.63,143.55,5.14]
[1728376400103,10.71,143.61,143.57,10.71]
[1728376400707,3.4829,143.6,143.57,10.71]
[1728376401601,10.71,143.61,143.57,10.71]
[1728376401906,3.483,143.59,143.57,10.71]
[1728376403102,3.59343863,143.63,143.56,3.4837]
[1728376403103,3.4828,143.6,143.58,10.71]
[1728376404415,3.483,143.59,143.58,10.71]
[1728376404609,10.71,143.62,143.56,10.71]
[1728376404811,3.4834,143.57,143.56,10.71]
[1728376405112,10.71,143.6,143.56,10.71]
[1728376405316,3.4831,143.59,143.58,10.71]
[1728376408019,3.4831,143.59,143.55,3.4838]
[1728376408308,3.4831,143.59,143.56,10.71]
[1728376409208,6.583,143.61,143.58,10.71]
[1728376409407,6.583,143.61,143.59,10.71]
[1728376409612,5.14,143.61,143.59,10.71]
[1728376409811,8.6226,143.61,143.59,10.71]
[1728376410707,5.14,143.61,143.59,10.71]
[1728376410909,3.59343863,143.63,143.59,10.71]
[1728376411204,3.4824,143.62,143.59,10.71]
[1728376411411,8.73343863,143.63,143.59,10.71]
[1728376411812,3.4824,143.62,143.59,10.71]
[1728376412611,3.4825,143.61,143.59,10.71]
[1728376414612,10.71,143.62,143.58,10.71]
[1728376414811,10.71,143.61,143.57,10.71]
[1728376415206,3.4831,143.59,143.57,10.71]
[1728376416613,3.4828,143.6,143.57,10.71]
[1728376416822,10.71,143.61,143.57,10.71]
[1728376417023,10.71,143.61,143.53,7.9246]
[1728376417220,3.4835,143.57,143.55,10.71]
[1728376418516,3.4837,143.56,143.55,10.71]
[1728376419224,3.4835,143.57,143.55,10.71]
[1728376426324,15.85,143.6,143.53,3.4843]
[1728376426623,15.85,143.6,143.55,10.71]
[1728376427025,3.4836,143.57,143.55,10.71]
[1728376429529,3.4836,143.57,143.56,10.71]
[1728376429728,3.4833,143.58,143.56,10.71]
[1728376430535,3.4829,143.6,143.57,10.71]
[1728376431527,6.5002,143.61,143.58,3.4831]
[1728376431728,6.5002,143.61,143.59,10.71]
[1728376432235,9.9827,143.61,143.59,10.71]
[1728376433233,17.2102,143.61,143.56,10.71]
[1728376433934,3.4828,143.6,143.57,10.71]
[1728376435226,3.4827,143.61,143.58,10.71]
[1728376439235,3.4827,143.61,143.58,14.1932]
[1728376439629,3.4827,143.61,143.58,10.71]
[1728376441346,8.73343863,143.63,143.59,10.71]
[1728376441536,3.59343863,143.63,143.59,10.71]
[1728376441732,8.73343863,143.63,143.59,10.71]
[1728376441933,3.4823,143.62,143.59,10.71]
[1728376442741,3.4823,143.62,143.59,14.1929]
[1728376442932,8.73343863,143.63,143.59,14.1929]
[1728376443533,8.73343863,143.63,143.59,10.71]
[1728376443845,3.4822,143.62,143.59,10.71]
[1728376454245,3.4825,143.61,143.59,10.71]
[1728376455045,3.4827,143.6,143.59,10.71]
[1728376455257,3.4827,143.6,143.59,16.7274116]
[1728376456046,3.4827,143.6,143.59,6.0174116]
[1728376456341,3.4827,143.6,143.59,11.26730069]
[1728376456546,10.71,143.62,143.57,10.71]
[1728376456844,3.4831,143.59,143.58,11.27158553]
[1728376457042,10.71,143.62,143.58,11.27158553]
[1728376457245,8.73343863,143.63,143.58,10.71]
[1728376457544,8.73343863,143.63,143.6,10.71]
[1728376457735,3.4824,143.62,143.6,10.71]
[1728376458251,3.59343863,143.63,143.6,10.71]
[1728376459341,7.07563863,143.63,143.6,10.71]
[1728376460744,3.59343863,143.63,143.6,10.71]
[1728376460943,3.4823,143.62,143.6,10.71]
[1728376465448,0.12502,143.63,143.61,10.71]
[1728376465757,0.12502,143.63,143.62,10.71]
[1728376465953,0.12502,143.63,143.62,14.1922]
[1728376466162,0.12502,143.69,143.62,21.98114715]
[1728376466344,0.12502,143.69,143.67,10.71]
[1728376466539,0.12502,143.69,143.68,10.71]
[1728376466743,0.12502,143.69,143.68,21.96120326]
[1728376468146,0.12502,143.69,143.68,16.7099827]
[1728376468347,0.12502,143.69,143.68,11.23241038]
[1728376468549,0.12502,143.69,143.68,21.94241038]
[1728376468751,0.12502,143.69,143.68,16.7099827]
[1728376469055,3.4812,143.67,143.65,5.14]
[1728376469355,3.4812,143.67,143.66,16.70517121]
[1728376469556,10.83502,143.69,143.64,15.85]
[1728376469858,3.4815,143.66,143.64,15.85]
[1728376470244,3.4815,143.65,143.64,15.85]
[1728376470445,3.4815,143.65,143.64,5.99196332]
[1728376470653,3.48357295,143.66,143.62,5.14]
[1728376470849,3.4821,143.63,143.62,15.85]
[1728376471241,3.4821,143.63,143.62,27.07014143]
[1728376471640,3.4821,143.63,143.62,21.84355773]
[1728376472040,3.4821,143.63,143.62,16.70355773]
[1728376472260,3.4821,143.63,143.62,10.71]
[1728376472443,3.4823,143.62,143.61,10.71]
[1728376472650,3.4823,143.62,143.61,21.92736473]
[1728376472848,3.4823,143.62,143.61,10.71]
[1728376476158,3.4823,143.62,143.6,10.71]
[1728376476861,3.4825,143.61,143.59,2.7432]
[1728376477161,3.4825,143.61,143.6,11.21527265]
[1728376477758,3.4825,143.61,143.6,5.99074658]
[1728376478070,10.71,143.61,143.57,0.12502]
[1728376478360,3.4831,143.59,143.57,10.83502]
[1728376478565,10.71,143.63,143.58,21.9290795]
[1728376478764,10.71,143.63,143.58,10.71]
[1728376479555,3.4825,143.61,143.58,10.71]
[1728376481056,10.71,143.63,143.58,10.71]
[1728376481257,3.4829,143.6,143.58,10.71]
[1728376482460,10.71,143.63,143.58,10.71]
[1728376482657,3.4826,143.61,143.58,10.71]
[1728376483775,3.4829,143.6,143.58,10.71]
[1728376484062,10.71,143.63,143.58,10.71]
[1728376484754,3.4826,143.61,143.58,10.71]
[1728376484957,10.71,143.63,143.58,10.71]
[1728376485562,3.4829,143.6,143.58,10.71]
[1728376486061,10.71,143.63,143.58,10.71]
[1728376486263,3.4826,143.61,143.58,10.71]
[1728376487966,3.4826,143.61,143.58,14.1932]
[1728376488164,3.4826,143.61,143.59,10.71]
[1728376488568,3.4826,143.61,143.58,10.71]
[1728376488865,10.71,143.63,143.58,10.71]
[1728376488866,3.4827,143.6,143.58,10.71]
[1728376490362,3.483,143.59,143.58,10.71]
[1728376490570,3.483,143.59,143.58,21.93020339]
[1728376491672,3.483,143.59,143.58,15.93692039]
[1728376491974,3.483,143.59,143.58,21.93194679]
[1728376495168,3.483,143.59,143.58,21.93504063]
[1728376495565,5.14,143.64,143.58,21.93504063]
[1728376495866,10.71,143.63,143.59,11.22504063]
[1728376496061,10.71,143.63,143.58,10.71]
[1728376496371,10.71,143.63,143.59,5.99495926]
[1728376496558,3.4829,143.6,143.58,10.71]
[1728376496763,3.4829,143.6,143.59,5.99561104]
[1728376498369,3.4832,143.58,143.57,0.12502]
[1728376498569,3.4832,143.58,143.57,11.35374085]
[1728376498774,3.4832,143.58,143.57,5.35590396]
[1728376498975,3.4832,143.58,143.57,11.35244661]
[1728376499368,3.4832,143.58,143.57,11.3525987]
[1728376500473,3.4832,143.58,143.57,22.0625987]
[1728376501070,3.483,143.59,143.57,22.0625987]
[1728376501274,3.483,143.59,143.58,11.2275787]
[1728376504177,1.3844,143.63,143.58,5.99775039]
[1728376504178,3.4828,143.6,143.58,5.99775039]
[1728376504478,3.4828,143.6,143.58,10.71]
[1728376505368,3.4828,143.6,143.59,5.99776783]
[1728376505879,3.4828,143.6,143.59,11.22825063]
[1728376506080,14.1928,143.6,143.59,11.22825063]
[1728376506283,10.71,143.6,143.57,0.12502]
[1728376506467,14.1932,143.58,143.57,0.12502]
[1728376506672,17.59081532,143.58,143.57,0.12502]
[1728376509174,22.71081532,143.58,143.57,0.12502]
[1728376510286,14.1941,143.55,143.51,0.12502]
[1728376510485,10.71,143.55,143.52,11.23767337]
[1728376510673,3.4842,143.54,143.51,3.60992]
[1728376510876,3.4842,143.54,143.52,11.23768711]
[1728376511081,3.4842,143.54,143.53,11.23768711]
[1728376511275,3.4842,143.54,143.53,6.00242877]
[1728376511479,3.4842,143.54,143.53,11.23648085]
[1728376511689,10.71,143.55,143.53,11.23648085]
[1728376511893,14.194,143.55,143.51,3.60992]
[1728376512186,14.194,143.55,143.52,11.23498612]
[1728376512378,14.194,143.55,143.53,6.00093489]
[1728376512577,8.51761532,143.58,143.52,10.71]
[1728376512776,10.71,143.57,143.54,3.4842]
[1728376512991,10.71,143.57,143.53,5.22952898]
[1728376513289,10.71,143.57,143.52,10.71]
[1728376513478,14.1936,143.57,143.53,14.70751811]
[1728376513673,19.22761532,143.58,143.54,16.70406411]
[1728376513874,19.22761532,143.58,143.54,10.71]
[1728376514080,5.12,143.58,143.55,14.1939]
[1728376514276,5.12,143.58,143.55,25.4131853]
[1728376514476,5.12,143.58,143.55,14.1939]
[1728376514891,5.12,143.58,143.56,5.99184458]
[1728376515094,5.12,143.58,143.55,14.1939]
[1728376515585,8.6032,143.58,143.55,14.1939]
[1728376515981,8.6032,143.58,143.52,5.12]
[1728376515982,22.87908103,143.58,143.56,5.99179689]
[1728376516188,22.87908103,143.58,143.54,14.1942]
[1728376516488,22.87908103,143.58,143.55,11.21841785]
[1728376516694,22.87908103,143.58,143.54,14.1942]
[1728376516891,22.87908103,143.58,143.55,5.99147475]
[1728376517190,22.87908103,143.58,143.56,5.99147475]
[1728376517681,12.16908103,143.58,143.56,5.99147475]
[1728376517880,12.16908103,143.58,143.55,14.1939]
[1728376518193,12.16908103,143.58,143.56,5.99130343]
[1728376518393,12.16908103,143.58,143.55,14.1939]
[1728376518602,12.16908103,143.58,143.56,5.99128156]
[1728376518887,12.16908103,143.58,143.55,14.1939]
[1728376519089,12.16908103,143.58,143.56,11.21616431]
[1728376519290,12.16908103,143.58,143.55,10.71]
[1728376519493,12.16908103,143.58,143.56,11.21619776]
[1728376519689,12.16908103,143.58,143.55,10.71]
[1728376519892,12.16908103,143.58,143.56,11.21583841]
[1728376520094,12.16908103,143.58,143.55,10.71]
[1728376520291,12.16908103,143.58,143.56,11.21519508]
[1728376520488,12.16908103,143.58,143.55,10.71]